bitfinex-derivatives/quotes_SOLF0:USTF0_20260123
["timestamp","ask_amount","ask_price","bid_price","bid_amount"]
[1769201737955,18.74545708,127.19,127.12,24.41948388]
[1769201738153,18.74545708,127.19,127.12,17.33088388]
[1769201739049,18.74545708,127.19,127.13,7.0881]
[1769201740258,16.72780949,127.18,127.12,17.33088388]
[1769201740458,18.74545708,127.18,127.12,17.33088388]
[1769201740661,18.74545708,127.18,127.12,24.41948388]
[1769201740955,16.72780949,127.18,127.12,24.41948388]
[1769201741259,16.72780949,127.18,127.12,17.33088388]
[1769201741462,18.74545708,127.2,127.13,24.41898388]
[1769201741758,16.72780949,127.2,127.14,2.01764759]
[1769201741952,16.72780949,127.2,127.13,26.43663147]
[1769201742154,18.74545708,127.18,127.11,26.43733147]
[1769201742354,18.74545708,127.18,127.11,19.34853147]
[1769201742957,18.74545708,127.18,127.12,7.0887]
[1769201743357,16.72780949,127.18,127.12,7.0887]
[1769201743661,16.72780949,127.18,127.11,19.34853147]
[1769201743967,18.74545708,127.2,127.13,19.34853147]
[1769201744556,16.72780949,127.2,127.15,2.01764759]
[1769201744759,16.72780949,127.22,127.16,2.01764759]
[1769201745255,16.72780949,127.22,127.16,19.34853147]
[1769201747356,16.72780949,127.22,127.16,26.43493147]
[1769201748860,16.72780949,127.21,127.15,2.01764759]
[1769201749855,16.72780949,127.21,127.14,19.34853147]
[1769201750054,16.72780949,127.21,127.15,7.087]
[1769201751764,16.72780949,127.21,127.15,9.10464759]
[1769201752160,16.72780949,127.19,127.13,9.10554759]
[1769201752666,16.72780949,127.19,127.13,26.43643147]
[1769201753566,16.72780949,127.19,127.14,9.10524759]
[1769201755468,16.72780949,127.19,127.14,7.0876]
[1769201756069,16.72780949,127.19,127.14,9.10524759]
[1769201760577,7.0838,127.21,127.15,17.33088388]
[1769201760871,16.72780949,127.22,127.16,2.01764759]
[1769201761970,16.72780949,127.22,127.16,19.34853147]
[1769201762378,17.9942765,127.21,127.16,2.01764759]
[1769201762672,17.9942765,127.21,127.15,7.0866]
[1769201763972,25.0780765,127.21,127.15,7.0866]
[1769201764364,25.0780765,127.21,127.14,9.10524759]
[1769201764568,17.9942765,127.2,127.14,9.10524759]
[1769201764766,17.9942765,127.2,127.14,7.0876]
[1769201764966,25.0785765,127.2,127.14,7.0876]
[1769201766183,17.9942765,127.2,127.14,7.0876]
[1769201766376,17.9942765,127.2,127.15,7.087]
[1769201766771,25.0779765,127.22,127.16,2.01764759]
[1769201767885,25.0779765,127.22,127.15,20.43210736]
[1769201768180,16.34355139,127.21,127.15,20.43210736]
[1769201769173,16.34355139,127.21,127.15,27.51890736]
[1769201769682,18.36119898,127.2,127.13,7.0876]
[1769201771081,23.42845139,127.19,127.13,7.0876]
[1769201771280,16.34355139,127.18,127.13,7.0876]
[1769201772682,16.34355139,127.22,127.15,19.71029277]
[1769201773277,16.34355139,127.22,127.16,2.01764759]
[1769201773886,16.34355139,127.22,127.16,9.10404759]
[1769201775085,25.50739019,127.23,127.18,2.01764759]
[1769201777174,16.34355139,127.2,127.13,19.71029277]
[1769201777382,18.36119898,127.2,127.13,19.71029277]
[1769201778177,16.34355139,127.2,127.14,7.0876]
[1769201781196,16.34355139,127.19,127.14,7.0876]
[1769201784413,16.34355139,127.19,127.15,7.0868]
[1769201785312,16.34355139,127.19,127.14,7.0876]
[1769201786210,16.34355139,127.19,127.13,26.79849277]
[1769201787009,16.34355139,127.19,127.13,26.79784616]
[1769201787703,16.34355139,127.19,127.14,7.0875]
[1769201788514,16.34355139,127.19,127.14,9.10450098]
[1769201789210,16.34355139,127.18,127.11,19.70964616]
[1769201789613,23.42905139,127.18,127.11,26.79834616]
[1769201790211,23.42905139,127.18,127.11,19.70964616]
[1769201790415,23.42965139,127.17,127.11,17.69264518]
[1769201791907,23.42965139,127.17,127.11,24.78184518]
[1769201793106,16.34355139,127.17,127.11,24.78184518]
[1769201793303,16.34355139,127.17,127.11,26.79884616]
[1769201795717,23.42945139,127.17,127.11,26.79884616]
[1769201797119,23.42945139,127.17,127.11,24.78184518]
[1769201797313,17.20552064,127.21,127.14,19.67683761]
[1769201797507,17.20552064,127.21,127.14,17.65983663]
[1769201797713,19.22252162,127.21,127.14,19.67683761]
[1769201797912,19.22252162,127.21,127.14,17.65983663]
[1769201798319,19.22252162,127.21,127.14,19.67683761]
[1769201799023,26.30632162,127.21,127.14,26.76433761]
[1769201800316,17.20552064,127.21,127.14,26.76433761]
[1769201800823,17.20552064,127.21,127.15,7.0867]
[1769201801325,17.20552064,127.21,127.15,2.01700098]
[1769201802015,17.20552064,127.21,127.14,19.67683761]
[1769201803022,17.20552064,127.21,127.15,7.087]
[1769201803714,17.20552064,127.21,127.15,9.10400098]
[1769201804224,24.28942064,127.21,127.15,9.10400098]
[1769201804821,17.20552064,127.2,127.14,19.67683761]
[1769201805522,24.28982064,127.2,127.14,19.67683761]
[1769201807026,24.28982064,127.2,127.14,26.76443761]
[1769201808143,17.20552064,127.14,127.05,19.67683761]
[1769201808429,19.22252162,127.12,127.05,19.67683761]
[1769201808930,19.22252162,127.12,127.05,26.76943761]
[1769201809226,17.20552064,127.12,127.06,19.67683761]
[1769201811025,17.20552064,127.12,127.07,7.0915]
[1769201812229,17.20552064,127.13,127.07,24.75133663]
[1769201812530,26.31082162,127.13,127.07,17.65983663]
[1769201812718,17.20552064,127.12,127.05,19.67683761]
[1769201812922,19.22252162,127.12,127.05,19.67683761]
[1769201814025,19.22252162,127.12,127.06,24.75193663]
[1769201814326,19.22252162,127.12,127.06,17.65983663]
[1769201814526,19.22252162,127.12,127.07,7.0915]
[1769201815231,2.01700098,127.11,127.06,17.65983663]
[1769201815823,19.22252162,127.1,127.04,17.65983663]
[1769201816731,19.22252162,127.1,127.04,24.75293663]
[1769201816929,17.20552064,127.1,127.04,24.75293663]
[1769201818140,19.22252162,127.1,127.04,24.75293663]
[1769201819641,17.20552064,127.1,127.05,24.75243663]
[1769201820235,17.20552064,127.08,127.02,2.01700098]
[1769201820440,17.20552064,127.08,127.01,19.67683761]
[1769201820829,2.01700098,127.09,127.04,7.0931]
[1769201821037,19.22252162,127.1,127.04,7.0931]
[1769201821430,2.01700098,127.12,127.04,19.67683761]
[1769201821631,19.22252162,127.12,127.05,19.67683761]
[1769201822045,17.20552064,127.12,127.06,7.0921]
[1769201822438,16.93178991,127.1,127.03,15.97231744]
[1769201822743,18.94879089,127.1,127.03,17.98931842]
[1769201824032,18.94879089,127.1,127.04,23.06501744]
[1769201824540,16.93178991,127.1,127.04,17.98931842]
[1769201824844,18.94879089,127.14,127.06,17.98931842]
[1769201826141,16.93178991,127.13,127.07,7.0914]
[1769201827434,16.93178991,127.13,127.08,7.091]
[1769201828845,17.16277717,127.15,127.09,7.0903]
[1769201830232,17.16277717,127.14,127.08,18.84494667]
[1769201830735,17.16277717,127.14,127.08,16.82794569]
[1769201831131,17.16277717,127.14,127.08,23.91884569]
[1769201831644,17.16277717,127.14,127.09,7.0904]
[1769201834746,19.17977815,127.12,127.05,18.84494667]
[1769201835350,17.16277717,127.12,127.05,18.84494667]
[1769201835537,19.17977815,127.12,127.05,18.84494667]
[1769201835737,19.17977815,127.12,127.07,7.0915]
[1769201835945,17.16277717,127.12,127.07,7.0915]
[1769201836249,17.16277717,127.14,127.07,18.84494667]
[1769201837250,17.16277717,127.14,127.09,7.0904]
[1769201838551,17.16277717,127.14,127.09,9.10740098]
[1769201840554,17.16277717,127.14,127.09,7.0904]
[1769201841353,17.16277717,127.14,127.08,7.0909]
[1769201842554,17.16277717,127.14,127.09,7.0904]
[1769201843459,17.16277717,127.14,127.08,2.01700098]
[1769201844956,17.16277717,127.13,127.08,7.0909]
[1769201846358,17.16277717,127.13,127.09,7.0904]
[1769201847465,9.10410098,127.15,127.1,18.84494667]
[1769201847466,17.16277717,127.15,127.1,18.84494667]
[1769201847657,17.16277717,127.15,127.06,110.3192]
[1769201847658,19.17977815,127.15,127.08,18.84494667]
[1769201848475,19.17977815,127.15,127.09,7.0899]
[1769201849073,19.17977815,127.15,127.09,9.10842327]
[1769201849074,17.16277717,127.14,127.09,9.10842327]
[1769201849372,17.16277717,127.14,127.09,7.0899]
[1769201849774,17.16277717,127.14,127.08,25.93736896]
[1769201849966,17.16277717,127.14,127.08,18.84646896]
[1769201850162,17.16277717,127.14,127.09,2.01852327]
[1769201850675,17.16277717,127.14,127.08,18.84646896]
[1769201850873,17.16277717,127.14,127.09,7.0903]
[1769201852778,17.16277717,127.14,127.09,9.10882327]
[1769201855375,17.16277717,127.14,127.08,18.84646896]
[1769201856177,17.16277717,127.14,127.08,25.93686896]
[1769201856873,17.16277717,127.14,127.09,7.0901]
[1769201859571,17.16277717,127.14,127.08,25.93736896]
[1769201859878,16.42992275,127.13,127.08,23.91884569]
[1769201860375,16.42992275,127.13,127.02,16.33299279]
[1769201860581,18.44844602,127.11,127.04,2.01852327]
[1769201860780,16.42992275,127.11,127.04,18.35151606]
[1769201861280,0.05927006,127.09,127.06,0.05878527]
[1769201862877,0.05927006,127.09,127.06,23.48377806]
[1769201863080,16.42992275,127.11,127.06,25.50230133]
[1769201868089,16.42992275,127.11,127.06,16.39177806]
[1769201868481,23.51872275,127.12,127.06,18.41030133]
[1769201868789,23.51872275,127.12,127.06,16.39177806]
[1769201869391,23.51872275,127.12,127.06,23.48377806]
[1769201871188,23.51872275,127.12,127.06,25.50230133]
[1769201873382,16.42992275,127.13,127.07,25.44251606]
[1769201874288,16.42992275,127.13,127.09,0.05528972]
[1769201875886,16.42992275,127.15,127.09,16.38828251]
[1769201876090,16.42992275,127.15,127.09,18.40680578]
[1769201876396,16.42992275,127.15,127.09,18.35151606]
[1769201876592,23.51732275,127.15,127.09,18.35151606]
[1769201876786,16.42992275,127.15,127.11,0.05179376]
[1769201877994,18.44844602,127.14,127.08,16.33299279]
[1769201878188,16.42992275,127.14,127.08,16.33299279]
[1769201878891,16.42992275,127.13,127.08,16.33299279]
[1769201880400,16.42992275,127.15,127.09,16.33299279]
[1769201881493,16.42992275,127.15,127.09,23.42339279]
[1769201882001,2.01852327,127.13,127.08,7.0909]
[1769201882295,16.4094922,127.16,127.09,18.18406504]
[1769201882597,16.4094922,127.16,127.09,18.23485339]
[1769201882994,16.4094922,127.16,127.1,9.10832327]
[1769201883299,16.4094922,127.16,127.11,18.18406504]
[1769201883900,16.4094922,127.16,127.12,0.057383]
[1769201884092,16.4094922,127.16,127.12,2.07590627]
[1769201884696,16.4094922,127.2,127.15,2.01852327]
[1769201885201,16.4094922,127.22,127.16,2.01852327]
[1769201885401,16.4094922,127.22,127.15,2.01852327]
[1769201885700,16.4094922,127.22,127.16,0.05287972]
[1769201886606,16.4094922,127.22,127.16,2.07140299]
[1769201888101,16.4094922,127.22,127.16,0.05287972]
[1769201889198,16.4094922,127.22,127.16,22.76981291]
[1769201889396,9.1638388,127.23,127.18,2.01852327]
[1769201889801,24.73468781,127.23,127.18,2.01852327]
[1769201889998,9.1638388,127.23,127.17,15.63063319]
[1769201890299,9.1638388,127.23,127.19,0.05491747]
[1769201892304,24.73468781,127.23,127.19,0.05491747]
[1769201894900,24.73468781,127.23,127.16,2.01852327]
[1769201894901,15.6280903,127.22,127.16,2.01852327]
[1769201895303,15.6280903,127.22,127.16,17.64915646]
[1769201896400,15.6280903,127.22,127.18,0.05833554]
[1769201898207,0.05724129,127.22,127.18,0.05833554]
[1769201900100,15.6280903,127.22,127.18,0.05833554]
[1769201903711,17.58937228,127.21,127.14,9.10562327]
[1769201904017,17.58937228,127.21,127.14,24.73625646]
[1769201904509,17.58937228,127.21,127.15,7.087]
[1769201904703,15.57084901,127.21,127.15,7.087]
[1769201905113,0.05657525,127.19,127.15,7.087]
[1769201907911,26.75321108,127.23,127.16,17.64915646]
[1769201908212,9.1638388,127.23,127.19,9.10282327]
[1769201908413,15.57084901,127.25,127.19,9.10282327]
[1769201908414,15.57084901,127.25,127.2,2.01852327]
[1769201908910,15.57084901,127.25,127.2,2.01467684]
[1769201909110,15.57084901,127.25,127.2,9.09877684]
[1769201909704,15.57084901,127.25,127.19,17.64531003]
[1769201909905,15.57084901,127.25,127.18,7.0848]
[1769201909906,17.58552585,127.25,127.18,9.09947684]
[1769201910212,0.05309629,127.23,127.21,0.05819761]
[1769201910408,0.05309629,127.23,127.18,7.0848]
[1769201912007,0.05309629,127.23,127.18,24.73011003]
[1769201912716,0.05309629,127.23,127.19,2.01467684]
[1769201913612,0.05309629,127.23,127.19,9.09947684]
[1769201913915,22.5140256,127.27,127.21,2.01467684]
[1769201914513,15.4331256,127.26,127.21,2.01467684]
[1769201915016,15.4331256,127.26,127.2,24.66402359]
[1769201917117,15.4331256,127.26,127.21,15.56504675]
[1769201917318,15.4331256,127.26,127.21,17.57972359]
[1769201917521,15.4331256,127.26,127.21,15.56504675]
[1769201917715,22.5140256,127.26,127.2,9.09897684]
[1769201917917,17.50479896,127.24,127.17,17.57972359]
[1769201918313,24.58689896,127.24,127.17,17.57972359]
[1769201918618,17.50479896,127.24,127.18,7.0853]
[1769201918812,15.49012212,127.24,127.18,22.65034675]
[1769201919620,22.57232212,127.24,127.17,17.57972359]
[1769201920010,24.58699896,127.24,127.17,17.57972359]
[1769201920316,15.4331256,127.22,127.16,9.10077684]
[1769201920517,15.4331256,127.22,127.16,22.65114675]
[1769201921115,0.05871121,127.2,127.16,22.65114675]
[1769201921316,0.05871121,127.2,127.16,24.66582359]
[1769201922019,15.4331256,127.22,127.17,7.0859]
[1769201923523,24.53100244,127.22,127.16,15.56504675]
[1769201923918,24.53100244,127.22,127.16,22.65154675]
[1769201924112,22.5163256,127.22,127.16,24.66622359]
[1769201926026,15.4331256,127.22,127.16,24.66622359]
[1769201926724,15.4331256,127.24,127.18,15.56504675]
[1769201927415,7.0815,127.26,127.19,15.56504675]
[1769201927617,15.4331256,127.25,127.19,15.56504675]
[1769201928227,22.5148256,127.25,127.19,22.64974675]
[1769201928621,24.52950244,127.25,127.19,22.64974675]
[1769201928816,24.52990244,127.24,127.18,2.01467684]
[1769201929020,24.52990244,127.24,127.17,15.56504675]
[1769201929220,22.5152256,127.24,127.17,17.57972359]
[1769201929924,22.5152256,127.24,127.18,22.65024675]
[1769201930929,15.4331256,127.23,127.18,22.65024675]
[1769201932427,15.4331256,127.23,127.18,15.56504675]
[1769201932930,17.44780244,127.23,127.17,7.0859]
[1769201933827,2.01467684,127.23,127.17,15.56504675]
[1769201934136,17.44780244,127.23,127.17,15.56504675]
[1769201935124,24.53040244,127.23,127.17,22.65094675]
[1769201935331,22.5157256,127.23,127.17,22.65094675]
[1769201935534,24.53040244,127.23,127.17,22.65094675]
[1769201937137,22.5157256,127.23,127.17,22.65094675]
[1769201938538,24.53040244,127.23,127.17,22.65094675]
[1769201939032,15.4331256,127.23,127.18,7.0854]
[1769201939233,15.4331256,127.23,127.18,22.65044675]
[1769201939730,7.0821,127.24,127.18,22.65044675]
[1769201940333,7.0821,127.24,127.19,22.64984675]
[1769201940334,15.4331256,127.24,127.19,22.64984675]
[1769201941036,15.4331256,127.24,127.19,7.0848]
[1769201941232,17.44780244,127.22,127.17,7.0854]
[1769201941429,15.4331256,127.22,127.16,2.01467684]
[1769201941630,24.52990244,127.24,127.18,7.0854]
[1769201941839,1.36792453,127.3,127.16,2.01467684]
[1769201941840,15.4331256,127.34,127.27,15.56504675]
[1769201942030,481.67151779,127.38,127.29,17.48045528]
[1769201942031,15.4331256,127.37,127.29,17.48045528]
[1769201942234,15.4331256,127.37,127.27,110.1373]
[1769201942235,25.2193943,127.34,127.25,17.48045528]
[1769201942432,16.12811746,127.33,127.25,17.48045528]
[1769201942831,16.12811746,127.33,127.27,7.0803]
[1769201943340,2.01467684,127.28,127.23,7.0824]
[1769201943836,2.01467684,127.28,127.22,15.46577844]
[1769201944735,2.01467684,127.28,127.22,22.54857844]
[1769201945529,16.12811746,127.4,127.3,15.46577844]
[1769201945735,16.12811746,127.4,127.34,2.01467684]
[1769201946032,18.1427943,127.42,127.34,17.48045528]
[1769201946736,23.20201746,127.39,127.3,22.54397844]
[1769201947042,18.1427943,127.38,127.3,17.48045528]
[1769201947536,16.5299245,127.35,127.28,7.0793]
[1769201947738,2.01467684,127.36,127.23,110.173]
[1769201947739,18.54460134,127.34,127.24,16.83677836]
[1769201947942,2.01467684,127.29,127.21,18.8514552]
[1769201948240,18.54460134,127.34,127.25,18.8514552]
[1769201948937,16.5299245,127.34,127.25,16.83677836]
[1769201949245,16.5299245,127.34,127.23,16.83677836]
[1769201949533,16.5299245,127.31,127.23,16.83677836]
[1769201949740,23.6094245,127.29,127.21,7.0836]
[1769201950137,16.5299245,127.28,127.2,16.83677836]
[1769201950439,21.664872,127.28,127.2,16.83677836]
[1769201950635,110.1252,127.29,127.13,16.83677836]
[1769201950636,16.5299245,127.22,127.13,16.83677836]
[1769201951133,16.5299245,127.21,127.13,16.83677836]
[1769201951340,0.05134384,127.19,127.1,127.11997836]
[1769201951729,16.5299245,127.21,127.1,127.11997836]
[1769201951730,7.084,127.21,127.11,7.0892]
[1769201951928,16.5299245,127.2,127.1,16.83677836]
[1769201952134,0.04992549,127.16,127.1,16.83677836]
[1769201952536,0.04992549,127.16,127.06,16.83677836]
[1769201952735,16.5299245,127.14,127.06,16.83677836]
[1769201953441,16.5299245,127.14,127.09,0.0530659]
[1769201953634,23.6162245,127.17,127.09,0.0530659]
[1769201953839,16.5299245,127.15,127.09,0.0530659]
[1769201954039,16.5299245,127.15,127.06,16.83677836]
[1769201954448,16.5299245,127.13,127.03,16.83677836]
[1769201954944,16.5299245,127.12,127.03,16.83677836]
[1769201955344,16.5299245,127.1,127.0,16.83677836]
[1769201955643,16.5299245,127.08,127.0,16.83677836]
[1769201956644,126.8640245,127.05,126.96,16.83677836]
[1769201956845,16.5299245,127.04,126.96,16.83677836]
[1769201957042,16.5299245,127.07,126.97,16.83677836]
[1769201957243,16.5299245,127.07,126.98,16.83677836]
[1769201957445,110.3227,127.06,126.98,16.83677836]
[1769201957644,110.3227,127.06,126.9,110.4534]
[1769201957645,16.5299245,127.04,126.95,16.83677836]
[1769201958449,16.5299245,127.02,126.92,16.83677836]
[1769201958651,126.8907245,127.02,126.92,16.83677836]
[1769201958841,126.8996245,127.01,126.92,16.83677836]
[1769201959033,16.5299245,126.97,126.89,16.83677836]
[1769201959239,110.4296,126.94,126.84,211.83585275]
[1769201959536,16.5299245,126.87,126.77,1.36940482]
[1769201959740,110.5121,126.85,126.71,9.1638388]
[1769201959943,16.5299245,126.82,126.71,9.1638388]
[1769201960144,110.5454,126.81,126.71,9.1638388]
[1769201960446,16.5299245,126.82,126.71,119.7853388]
[1769201960649,127.0407245,126.85,126.73,115.7429475]
[1769201960945,16.5299245,126.85,126.73,115.7410475]
[1769201961149,16.5299245,126.85,126.74,16.83677836]
[1769201961338,127.0377245,126.85,126.74,16.83677836]
[1769201962048,16.5299245,126.85,126.75,16.83677836]
[1769201962344,110.4948,126.87,126.75,16.83677836]
[1769201962345,110.5003,126.86,126.75,16.83677836]
[1769201962545,110.5249,126.83,126.71,124.9202863]
[1769201962848,110.5161,126.84,126.71,124.9202863]
[1769201962849,110.5594,126.79,126.71,26.00061716]
[1769201963150,110.5505,126.8,126.71,26.00061716]
[1769201963151,132.215372,126.8,126.71,26.00061716]
[1769201963338,16.5299245,126.8,126.71,136.62411716]
[1769201963548,110.5356,126.82,126.74,0.05538838]
[1769201963842,16.5299245,126.82,126.74,0.05538838]
[1769201964061,110.4915,126.87,126.76,16.83677836]
[1769201964235,132.147072,126.88,126.76,16.83677836]
[1769201964433,127.0121245,126.88,126.76,16.83677836]
[1769201964638,126.9859245,126.91,126.79,16.83677836]
[1769201965043,126.9859245,126.91,126.81,16.88975912]
[1769201965245,126.9859245,126.91,126.81,16.83677836]
[1769201965246,126.9950245,126.9,126.81,16.83677836]
[1769201965652,127.0059245,126.89,126.78,21.97172586]
[1769201966247,127.0059245,126.89,126.78,16.83677836]
[1769201966746,16.5299245,126.85,126.75,16.83677836]
[1769201967149,16.5299245,126.88,126.77,16.83677836]
[1769201967449,134.23918387,126.94,126.76,110.5787]
[1769201967450,110.4198,126.95,126.83,16.83677836]
[1769201967643,110.4289,126.94,126.84,16.83677836]
[1769201967946,110.4377,126.93,126.84,16.83677836]
[1769201968150,16.5299245,126.91,126.8,21.97172586]
[1769201968953,16.5299245,126.91,126.8,16.83677836]
[1769201969149,127.0028245,126.89,126.76,110.5764]
[1769201969352,16.5299245,126.88,126.78,16.83677836]
[1769201969948,126.9761245,126.92,126.8,16.83677836]
[1769201970153,126.9761245,126.92,126.8,127.38237836]
[1769201970353,16.5299245,126.88,126.77,16.83677836]
[1769201970949,16.5299245,126.85,126.74,127.42937836]
[1769201971348,16.5299245,126.85,126.74,16.83677836]
[1769201971561,16.5299245,126.85,126.74,127.43397836]
[1769201972050,16.5299245,126.85,126.76,110.5794]
[1769201972250,16.5299245,126.85,126.76,17.06380911]
[1769201973049,16.5299245,126.85,126.76,127.64310911]
[1769201973451,16.5299245,126.85,126.76,17.06380911]
[1769201973652,5.17102305,126.83,126.73,17.06380911]
[1769201973852,21.68626752,126.83,126.73,17.06380911]
[1769201974156,16.51524447,126.79,126.71,9.1638388]
[1769201975653,16.51524447,126.78,126.71,9.1638388]
[1769201975858,16.51524447,126.76,126.71,9.1638388]
[1769201977656,110.6473,126.69,126.61,0.2369481]
[1769201977953,110.699,126.63,126.53,17.06380911]
[1769201978148,132.37666752,126.64,126.45,17.06380911]
[1769201978149,110.7518,126.57,126.45,17.06380911]
[1769201978354,5.17102305,126.61,126.49,135.00390911]
[1769201978557,16.51524447,126.62,126.5,17.06380911]
[1769201978755,16.51524447,126.62,126.51,17.06380911]
[1769201978948,110.666,126.67,126.51,17.06380911]
[1769201978949,127.18924447,126.66,126.53,17.06380911]
[1769201979550,16.51524447,126.66,126.55,17.06380911]
[1769201979754,127.15844447,126.7,126.58,17.06380911]
[1769201980060,127.15844447,126.7,126.6,17.06380911]
[1769201980256,110.6338,126.71,126.6,17.06380911]
[1769201980464,127.12084447,126.74,126.61,17.06380911]
[1769201980655,23.62524447,126.74,126.63,17.06380911]
[1769201980862,16.51524447,126.74,126.64,17.06380911]
[1769201981159,110.6029,126.74,126.64,17.06380911]
[1769201981361,7.1101,126.74,126.67,0.0568922]
[1769201981962,127.11224447,126.75,126.67,0.0568922]
[1769201982263,16.51524447,126.75,126.67,0.0568922]
[1769201982563,110.5859,126.76,126.66,17.06380911]
[1769201982763,110.5859,126.76,126.7,0.05066938]
[1769201983467,7.1093,126.76,126.7,0.05066938]
[1769201984465,117.6927,126.76,126.7,0.05066938]
[1769201984663,110.5427,126.81,126.7,17.11447849]
[1769201984865,127.05344447,126.82,126.71,17.06380911]
[1769201984866,16.51524447,126.82,126.71,17.06380911]
[1769201985268,134.15184447,126.82,126.71,17.06380911]
[1769201985566,134.15184447,126.82,126.75,0.05950488]
[1769201986067,134.17034447,126.8,126.68,17.06380911]
[1769201986461,110.5679,126.78,126.68,17.06380911]
[1769201986662,127.07494447,126.79,126.68,17.06380911]
[1769201987662,16.51524447,126.78,126.68,17.06380911]
[1769201987858,23.62324447,126.78,126.68,17.06380911]
[1769201988059,16.51524447,126.78,126.71,110.6256]
[1769201988266,16.51524447,126.82,126.72,127.67640911]
[1769201989574,16.51524447,126.82,126.72,17.06380911]
[1769201989759,16.51524447,126.82,126.73,5.17102305]
[1769201989964,16.51524447,126.82,126.73,115.77962305]
[1769201990259,7.1032,126.87,126.78,5.17102305]
[1769201990467,134.11104447,126.87,126.77,17.06380911]
[1769201990669,23.61844447,126.87,126.77,17.06380911]
[1769201990861,16.51524447,126.85,126.75,7.109]
[1769201991265,16.51524447,126.85,126.74,115.77042305]
[1769201991266,16.51524447,126.84,126.73,127.67260911]
[1769201991868,16.51524447,126.84,126.77,0.05029611]
[1769201992166,110.4812,126.88,126.77,0.05029611]
[1769201992167,16.51524447,126.91,126.79,127.61630911]
[1769201992374,16.51524447,126.91,126.81,110.5393]
[1769201993067,16.51524447,126.91,126.85,0.05000528]
[1769201993372,5.17102305,126.94,126.85,0.05000528]
[1769201993575,21.68626752,126.94,126.85,0.05000528]
[1769201993775,21.68626752,126.94,126.83,110.5157]
[1769201994067,16.51524447,126.94,126.83,110.5157]
[1769201994266,16.51524447,126.94,126.88,0.05793717]
[1769201994465,0.05400522,126.9,126.84,7.1039]
[1769201995274,0.05400522,126.9,126.82,24.16910911]
[1769201995465,126.91574447,126.97,126.85,110.5003]
[1769201995670,16.51524447,126.94,126.84,17.06380911]
[1769201995876,16.51524447,126.94,126.85,0.05561703]
[1769201996170,16.51524447,126.94,126.83,110.5161]
[1769201996375,16.51524447,126.94,126.84,117.6144]
[1769201996869,16.51524447,126.94,126.88,0.05853746]
[1769201997172,21.68626752,126.96,126.88,0.05853746]
[1769201997367,16.51524447,126.96,126.88,0.05853746]
[1769201997570,16.51524447,126.96,126.89,7.1012]
[1769201997773,23.61154447,126.99,126.89,7.1012]
[1769201997967,23.61154447,126.99,126.91,0.05267277]
[1769201998174,16.51524447,126.99,126.91,0.05267277]
[1769201998367,110.3556,127.03,126.94,5.17102305]
[1769201998368,16.51524447,127.03,126.94,5.17102305]
[1769201998676,16.51524447,127.03,126.92,110.4385]
[1769201998677,16.51524447,127.03,126.92,110.4413]
[1769201998877,16.51524447,127.02,126.97,0.0526391]
[1769201999570,16.57147346,127.01,126.91,24.16400911]
[1769201999776,16.51524447,127.0,126.88,5.17102305]
[1769202000170,16.51524447,127.0,126.91,7.1001]
[1769202000378,16.51524447,127.0,126.88,5.17102305]
[1769202000579,16.51524447,126.98,126.86,115.66182305]
[1769202000878,16.51524447,126.96,126.89,110.468]
[1769202001073,16.51524447,126.99,126.9,110.4597]
[1769202001281,16.51524447,126.99,126.89,110.468]
[1769202001480,16.51524447,126.99,126.89,7.1013]
[1769202001684,16.51524447,126.97,126.86,127.55460911]
[1769202001876,16.51524447,126.96,126.86,127.55460911]
[1769202002077,16.51524447,126.96,126.87,7.1024]
[1769202003676,16.51524447,126.96,126.86,17.06380911]
[1769202003878,16.38739878,126.92,126.81,110.5334]
[1769202004080,16.38739878,126.92,126.82,110.5292]
[1769202004382,0.05265771,126.88,126.84,7.1041]
[1769202004781,16.38739878,126.92,126.86,0.05025019]
[1769202007568,5.17102305,126.99,126.88,110.4779]
[1769202007769,16.38739878,126.99,126.91,110.4521]
[1769202008271,15.7758894,127.02,126.93,7.0991]
[1769202008473,15.7758894,127.02,126.94,0.06079511]
[1769202008670,15.7758894,127.02,126.93,7.0991]
[1769202009086,15.7758894,127.02,126.97,0.05987367]
[1769202009377,15.7758894,127.02,126.93,7.0991]
[1769202010181,15.7758894,127.01,126.93,7.0991]
[1769202010984,0.05410078,126.98,126.93,7.0991]
[1769202012083,0.05410078,126.98,126.94,0.05828537]
[1769202015784,15.82999018,126.98,126.87,132.19879395]
[1769202015979,15.82999018,126.98,126.89,110.4693]
[1769202016288,15.7758894,126.98,126.89,110.4693]
[1769202016690,7.0956,127.0,126.92,7.0998]
[1769202017795,22.8714894,127.0,126.92,7.0998]
[1769202018288,15.7758894,127.03,126.94,110.4246]
[1769202018690,15.7758894,127.03,126.93,132.14789395]
[1769202018888,15.7758894,127.03,126.91,5.17102305]
[1769202019193,22.8702894,127.02,126.94,7.0984]
[1769202019494,15.7758894,127.01,126.91,110.4514]
[1769202019682,15.7758894,127.01,126.9,127.0039709]
[1769202020286,7.0955,127.0,126.93,7.0993]
[1769202021391,22.8719894,126.99,126.91,7.1]